bitfinex/quotes_ETHUSD_20260228
["timestamp","ask_amount","ask_price","bid_price","bid_amount"]
[1772249838799,0.57278176,1923.8,1923.3,0.53993646]
[1772249839604,0.57278176,1923.8,1923.1,0.53993646]
[1772249839808,0.57178176,1923.7,1923.1,0.53993646]
[1772249840178,0.001,1923.8,1923.1,0.53993646]
[1772249840887,0.57278176,1923.8,1923.1,0.53993646]
[1772249841696,0.57278176,1923.8,1923.2,1.83985326]
[1772249845115,0.57278176,1923.8,1923.3,0.53993646]
[1772249846001,0.57278176,1923.8,1923.2,1.2999168]
[1772249847022,0.57278176,1923.8,1923.2,1.83985326]
[1772249847824,0.57278176,1923.8,1923.3,0.53993646]
[1772249848623,0.57278176,1923.8,1923.4,1.29978163]
[1772249848855,0.001,1923.7,1923.4,1.29978163]
[1772249849198,0.57278176,1923.7,1923.4,1.29978163]
[1772249850506,0.001,1923.7,1923.6,1.83958295]
[1772249850834,0.001,1923.7,1923.6,1.29964649]
[1772249852929,0.001,1923.7,1923.5,5.198769]
[1772249853139,0.001,1923.7,1923.5,1.29971406]
[1772249856424,0.57278176,1923.7,1923.4,1.29978009]
[1772249856939,0.001,1923.7,1923.5,0.53993646]
[1772249857521,0.001,1923.7,1923.4,1.29978009]
[1772249859271,0.57332062,1924.0,1923.6,0.53993646]
[1772249859413,0.00153886,1925.0,1924.0,0.53993646]
[1772249859414,0.57178176,1924.9,1924.0,0.53993646]
[1772249859616,0.57178176,1924.9,1924.3,1.13019626]
[1772249859925,0.57178176,1924.9,1924.3,0.53993646]
[1772249861224,0.57178176,1924.9,1924.4,1.29910621]
[1772249861757,1.30024415,1925.0,1924.4,1.29910621]
[1772249861758,0.00153886,1925.0,1924.5,0.53971154]
[1772249861959,0.001,1924.8,1924.5,0.53971154]
[1772249862157,0.001,1924.8,1924.5,2.10071154]
[1772249862523,0.001,1924.8,1924.6,0.53971154]
[1772249862766,0.001,1924.8,1924.5,1.561]
[1772249863348,0.001,1924.8,1924.6,1.29897121]
[1772249864071,0.001,1924.8,1924.6,1.83868275]
[1772249864231,0.001,1924.8,1924.6,1.29897121]
[1772249865020,0.001,1924.8,1924.6,1.83868275]
[1772249865649,0.001,1924.8,1924.2,7.94846229]
[1772249865650,0.53790752,1924.8,1924.2,2.10371154]
[1772249865842,0.53790752,1924.8,1924.3,0.53971154]
[1772249866517,0.001,1924.8,1924.3,0.53971154]
[1772249867673,0.001,1924.8,1924.5,0.53971154]
[1772249868760,0.001,1924.8,1924.6,2.10371154]
[1772249869346,0.001,1924.8,1924.7,0.53971154]
[1772249870092,0.001,1924.8,1924.7,1.83861526]
[1772249871359,0.00153886,1925.0,1924.7,1.29890372]
[1772249872891,0.00153886,1925.0,1924.7,1.83861526]
[1772249873250,0.53844638,1925.0,1924.7,1.29890372]
[1772249873793,0.53844638,1925.0,1924.6,2.86292713]
[1772249873994,0.001,1924.9,1924.6,2.86292713]
[1772249874288,0.001,1924.9,1924.6,3.40263867]
[1772249876084,0.001,1924.9,1924.7,0.53971154]
[1772249876390,0.00153886,1925.0,1924.7,0.53971154]
[1772249877161,0.00153886,1925.0,1924.9,0.53971154]
[1772249877364,0.00153886,1925.0,1924.9,2.11271154]
[1772249877563,0.00153886,1925.0,1924.9,1.573]
[1772249878491,0.53844638,1925.0,1924.9,1.573]
[1772249878852,0.53844638,1925.0,1924.8,1.29883624]
[1772249880566,0.00153886,1925.0,1924.8,1.29883624]
[1772249883697,0.00153886,1925.0,1924.8,1.83854778]
[1772249884392,0.00153886,1925.0,1924.8,1.29883624]
[1772249885183,0.00153886,1925.0,1924.8,1.83854778]
[1772249885912,0.00153886,1925.0,1924.9,1.583]
[1772249887410,0.00153886,1925.0,1924.9,2.88176876]
[1772249887611,0.00153886,1925.0,1924.9,3.4225803]
[1772249888925,0.00153886,1925.0,1924.9,3.81554052]
[1772249889778,0.30357131,1925.0,1924.8,0.0011]
[1772249889979,0.30203245,1924.9,1924.6,0.0011]
[1772249891926,1.6412569,1924.8,1924.6,0.0011]
[1772249892611,0.3401295,1924.7,1924.6,0.0011]
[1772249897764,0.32877104,1924.9,1924.6,0.0011]
[1772249898074,0.32877104,1924.9,1924.7,0.0022]
[1772249898868,0.00153886,1925.0,1924.8,0.0022]
[1772249899039,0.00153886,1925.0,1924.9,0.0011]
[1772249899562,0.00153886,1925.0,1924.9,1.30096876]
[1772249899737,0.32651867,1925.3,1924.9,1.79753488]
[1772249900061,0.32651867,1925.3,1925.0,0.0011]
[1772249901853,0.31874475,1925.2,1924.7,0.0011]
[1772249902052,0.001,1924.9,1924.7,1.29999847]
[1772249902258,0.001,1924.9,1924.7,0.0011]
[1772249902824,0.001,1924.9,1924.7,1.29999323]
[1772249903054,0.001,1924.9,1924.8,0.49876612]
[1772249903968,0.001,1924.9,1924.8,1.79760236]
[1772249912675,0.29678752,1925.3,1924.9,0.49876612]
[1772249912844,0.29678752,1925.3,1924.9,2.09276612]
[1772249913042,0.29678752,1925.3,1925.0,1.29870129]
[1772249913266,0.29678752,1925.3,1924.9,3.3914833]
[1772249914875,0.29678752,1925.3,1925.0,0.49876612]
[1772249915871,0.001,1925.2,1924.9,3.3914833]
[1772249918478,0.28491854,1925.2,1924.9,3.3914833]
[1772249918673,0.28491854,1925.2,1924.9,2.89271718]
[1772249921258,0.28491854,1925.2,1924.9,3.39757733]
[1772249927173,0.28491854,1925.2,1925.0,0.0011]
[1772249928057,0.001,1925.2,1925.0,0.0011]
[1772249928282,0.26390084,1925.2,1925.0,0.0011]
[1772249931877,0.001,1925.2,1925.0,0.50596015]
[1772249935181,0.001,1925.2,1925.0,1.80464432]
[1772249940491,0.001,1925.1,1925.0,1.80464432]
[1772249940803,0.001,1925.1,1925.0,0.50596015]
[1772249942493,0.001,1925.1,1925.0,0.0011]
[1772249942664,0.26159457,1925.1,1925.0,0.0011]
[1772249946396,1.5602284,1925.1,1925.0,0.0011]
[1772249946766,0.26159457,1925.1,1925.0,0.0011]
[1772249947489,1.5602284,1925.1,1925.0,0.0011]
[1772249947797,0.26159457,1925.1,1925.0,0.0011]
[1772249957599,0.001,1925.1,1925.0,0.0011]
[1772249958009,0.001,1925.1,1925.0,0.46152196]
[1772249960511,0.001,1925.1,1925.0,0.0011]
[1772249960690,0.26159457,1925.1,1925.0,0.0011]
[1772249965410,0.001,1925.1,1925.0,0.0011]
[1772249970712,0.26059457,1925.5,1925.0,0.46152196]
[1772249972407,1.55896639,1925.5,1925.0,1.29978234]
[1772249972625,1.55896639,1925.5,1925.1,0.46042196]
[1772249974725,0.26059457,1925.5,1925.1,0.46042196]
[1772249976394,1.55896593,1925.5,1925.1,0.46042196]
[1772249976696,1.55896593,1925.5,1925.2,0.0011]
[1772249976898,0.001,1925.4,1925.2,0.0011]
[1772249977897,0.26159457,1925.4,1925.2,0.0011]
[1772249978721,1.29849893,1925.3,1925.2,0.0011]
[1772249979118,1.56007761,1925.4,1925.2,0.0011]
[1772249981724,0.26159457,1925.4,1925.2,0.0011]
[1772249981907,0.26159457,1925.4,1925.0,0.48177848]
[1772249981908,0.25949457,1925.3,1925.0,0.48177848]
[1772249982107,0.26049457,1925.4,1925.1,0.48067848]
[1772249983241,1.55892935,1925.4,1925.1,0.48067848]
[1772249985608,0.26049457,1925.4,1925.1,0.48067848]
[1772249986909,0.001,1925.4,1925.1,0.48067848]
[1772249988533,0.001,1925.4,1925.2,0.0011]
[1772249988734,0.001,1925.4,1925.2,0.48177848]
[1772249996510,0.26049457,1925.7,1925.4,0.48067848]
[1772249996713,0.26049457,1925.6,1925.2,0.48177848]
[1772249996928,0.26049457,1925.6,1925.2,0.0011]
[1772249999451,1.55977704,1925.7,1925.2,0.48177848]
[1772250000249,0.001,1925.5,1925.2,0.48177848]
[1772250002148,0.26149457,1925.5,1925.2,0.48177848]
[1772250003232,0.001,1925.5,1925.2,0.48177848]
[1772250005052,0.001,1925.7,1925.3,0.48067848]
[1772250005356,0.00153886,1926.0,1925.7,0.48067848]
[1772250005554,0.26149457,1925.9,1925.5,1.614]
[1772250006173,0.26149457,1925.6,1924.7,0.23607848]
[1772250006328,0.46965175,1925.4,1924.7,0.23607848]
[1772250006521,0.46965175,1925.2,1924.7,0.23607848]
[1772250006827,0.46965175,1925.2,1924.8,0.48067848]
[1772250007950,1.76812782,1925.4,1924.8,0.48067848]
[1772250008457,1.29839994,1925.5,1925.0,0.48067848]
[1772250008638,0.46965175,1925.4,1925.0,0.48067848]
[1772250010871,1.76809144,1925.4,1925.0,0.48067848]
[1772250011949,1.76809144,1925.4,1925.1,0.0011]
[1772250012154,1.76909144,1925.4,1925.1,0.0011]
[1772250014345,0.47588027,1925.3,1925.1,0.0011]
[1772250015069,0.47588027,1925.3,1924.8,1.29988767]
[1772250015270,0.47588027,1924.9,1924.5,0.0011]
[1772250015468,0.47588027,1924.9,1924.5,0.47981085]
[1772250016177,1.29883624,1924.8,1924.5,0.47981085]
[1772250016358,1.77471651,1924.8,1924.5,0.47981085]
[1772250021176,1.77471651,1924.8,1924.5,0.0011]
[1772250024409,1.77471651,1924.8,1924.6,0.0011]
[1772250024690,0.001,1924.7,1924.6,0.0011]
[1772250028306,0.47688027,1924.7,1924.5,0.0011]
[1772250028625,0.47588027,1924.5,1924.3,0.0011]
[1772250028778,0.001,1924.7,1924.3,0.47981085]
[1772250028980,0.001,1924.7,1924.4,0.47871085]
[1772250033618,0.001,1924.7,1924.5,0.47871085]
[1772250035299,1.29861771,1925.2,1924.6,0.47871085]
[1772250035497,5.66996466,1925.3,1924.7,0.47871085]
[1772250036118,0.47588027,1925.2,1924.7,0.47871085]
[1772250037723,1.77450126,1925.2,1924.7,0.47871085]
[1772250038219,0.47588027,1925.1,1924.7,0.47871085]
[1772250040631,1.77457083,1925.1,1924.7,0.47871085]
[1772250040804,0.47189789,1925.0,1924.7,0.47871085]
[1772250045630,1.77039682,1925.3,1924.8,0.47650889]
[1772250045936,0.47189789,1925.3,1924.8,0.47650889]
[1772250049242,1.77046427,1925.2,1924.8,0.47650889]
[1772250049737,1.77146427,1925.2,1924.8,0.47650889]
[1772250054942,1.29956638,1925.2,1924.8,0.47650889]
[1772250055146,0.001,1925.2,1924.8,0.47650889]
[1772250055619,0.001,1925.4,1924.9,0.47650889]
[1772250055820,1.29943806,1925.4,1925.1,0.47650889]
[1772250056144,1.77133595,1925.4,1925.1,0.47650889]
[1772250056846,0.001,1925.4,1925.1,0.47650889]
[1772250057044,0.001,1925.4,1925.2,0.47650889]
[1772250057740,0.47289789,1925.4,1925.0,0.47650889]
[1772250059170,0.47289789,1925.4,1925.1,0.47650889]
[1772250059171,0.001,1925.4,1925.1,0.47650889]
[1772250060342,0.001,1925.4,1925.2,0.47650889]
[1772250060731,1.29825524,1925.7,1925.2,0.47650889]
[1772250061528,0.47189789,1925.5,1924.9,2.07450889]
[1772250061840,0.47189789,1925.5,1925.0,0.47650889]
[1772250062240,0.47189789,1925.5,1924.9,3.28970947]
[1772250062241,0.001,1925.3,1925.1,0.39295107]
[1772250062444,0.001,1925.3,1925.2,0.47650889]
[1772250064347,1.76999228,1925.9,1925.3,0.47650889]
[1772250064534,0.47189789,1925.8,1925.3,0.47650889]
[1772250064934,0.47189789,1925.7,1925.3,0.47650889]
[1772250065353,0.47189789,1925.7,1925.1,0.47650889]
[1772250067949,1.77019452,1925.6,1925.1,0.47650889]
[1772250068426,1.77019452,1925.6,1925.1,1.77513331]
[1772250068630,0.47189789,1925.6,1925.2,0.47650889]
[1772250070242,1.75087188,1925.7,1925.3,0.49865188]
[1772250070557,1.75070084,1925.9,1925.5,0.49865188]
[1772250070755,1.75069447,1925.9,1925.5,0.49865188]
[1772250072662,0.45259882,1925.8,1925.5,0.49865188]
[1772250073038,0.45259882,1925.8,1925.4,2.09565188]
[1772250073430,0.45259882,1925.8,1925.4,1.597]
[1772250073653,0.45259882,1925.8,1925.5,0.49865188]
[1772250074137,1.75080561,1925.8,1925.5,0.49865188]
[1772250075063,1.75180561,1925.8,1925.5,0.49865188]
[1772250079072,0.45359882,1925.8,1925.5,0.49865188]
[1772250079272,0.001,1925.8,1925.5,0.49865188]
[1772250079483,0.001,1925.8,1925.6,0.49865188]
[1772250084575,0.00153886,1926.0,1925.8,0.49865188]
[1772250085252,0.45259882,1926.7,1926.0,0.49865188]
[1772250085464,0.45259882,1926.4,1925.9,0.49865188]
[1772250087771,1.75039778,1926.4,1925.9,0.49865188]
[1772250087974,0.45359882,1926.3,1925.9,0.49865188]
[1772250089271,0.45359882,1926.3,1925.8,1.597]
[1772250089858,0.45259882,1926.1,1925.8,1.597]
[1772250091281,0.45259882,1925.8,1925.4,0.0011]
[1772250091783,0.45259882,1926.1,1925.4,0.49975188]
[1772250091982,0.45259882,1926.1,1925.5,0.49865188]
[1772250091983,1.75062581,1926.0,1925.5,0.49865188]
[1772250092150,0.45259882,1925.9,1925.5,0.49865188]
[1772250094952,0.45259882,1925.7,1925.4,0.0011]
[1772250095179,0.45259882,1925.7,1925.4,0.49975188]
[1772250095479,1.2981618,1925.8,1925.4,0.49975188]
[1772250097048,0.45259882,1925.8,1925.4,0.49975188]
[1772250099183,1.29802699,1926.0,1925.4,0.49975188]
[1772250099367,1.75061314,1926.1,1925.5,0.49865188]
[1772250100171,0.45259882,1926.1,1925.5,0.49865188]
[1772250101371,1.75061256,1926.1,1925.6,0.4815322]
[1772250101571,0.001,1925.8,1925.6,0.4815322]
[1772250102679,0.001,1925.8,1925.7,0.4815322]
[1772250103757,0.001,1925.8,1925.6,0.4815322]
[1772250108690,0.001,1925.8,1925.7,0.4815322]
[1772250110197,0.45452388,1926.7,1925.9,0.4815322]
[1772250110358,0.45452388,1926.5,1925.9,0.4815322]
[1772250110566,0.45452388,1926.5,1926.0,1.275]
[1772250111078,0.45452388,1926.5,1926.0,1.7565322]
[1772250111478,0.45452388,1926.3,1926.0,1.275]
[1772250113194,0.45452388,1926.3,1925.7,1.29822332]
[1772250113195,0.45452388,1926.2,1925.7,1.594]
[1772250113570,0.45452388,1926.1,1925.7,2.0755322]
[1772250114395,0.45452388,1926.1,1925.7,2.0766322]
[1772250114595,1.29892027,1926.2,1925.8,0.4815322]
[1772250114796,0.001,1926.2,1925.8,0.4815322]
[1772250115581,0.45552388,1926.2,1925.8,0.4815322]
[1772250117888,0.45452388,1926.8,1926.1,0.4815322]
[1772250118088,0.45452388,1926.7,1926.1,1.595]
[1772250118970,0.45452388,1926.7,1926.2,0.4815322]
[1772250119800,1.29762275,1926.6,1926.2,0.4815322]
[1772250121121,1.75214663,1926.6,1926.2,0.4815322]
[1772250124703,0.45452388,1926.5,1926.2,0.4815322]
[1772250124882,0.45452388,1926.5,1926.1,1.595]
[1772250125204,0.45452388,1926.4,1926.1,1.595]
[1772250126291,0.45452388,1926.4,1926.3,0.0011]
[1772250127592,1.75228135,1926.4,1926.3,0.0011]
[1772250133110,0.47035345,1926.3,1926.0,0.0011]
[1772250133299,0.47035345,1926.3,1926.0,0.45280037]
[1772250134684,1.29789222,1926.2,1926.0,0.45280037]
[1772250136011,1.76823207,1926.3,1926.0,0.45280037]
[1772250136616,0.47035345,1926.2,1926.0,0.0011]
[1772250136798,1.76824642,1926.2,1926.0,0.0011]
[1772250137314,0.47035345,1926.2,1926.0,0.0011]
[1772250140018,1.76824808,1926.2,1926.0,0.0011]
[1772250140393,0.47035345,1926.2,1926.0,0.0011]
[1772250140592,1.76824798,1926.2,1926.0,0.0011]
[1772250140793,1.76822329,1926.3,1926.0,0.0011]
[1772250140992,1.76822329,1926.3,1926.1,0.0011]
[1772250143923,0.47035345,1926.3,1926.1,0.0011]
[1772250144226,1.76818366,1926.3,1926.1,0.0011]
[1772250144423,0.47035345,1926.2,1926.1,0.0011]
[1772250145300,1.76824567,1926.2,1926.1,0.0011]
[1772250146901,0.47035345,1926.2,1926.1,0.0011]
[1772250147402,1.29787846,1926.3,1926.1,0.0011]
[1772250147606,1.76823191,1926.3,1926.1,0.0011]
[1772250153613,1.76814143,1926.4,1926.1,0.45280037]
[1772250154535,0.001,1926.2,1926.1,0.45280037]
[1772250164338,5.19187552,1926.5,1926.2,0.49747448]
[1772250164539,1.29869011,1926.5,1926.2,0.49747448]
[1772250166650,1.29869011,1926.5,1926.2,0.49857448]
[1772250168527,1.76429205,1926.5,1926.2,0.49857448]
[1772250169638,1.29869011,1926.5,1926.2,0.49857448]
[1772250170435,1.29869742,1926.5,1926.2,0.49857448]
[1772250171624,1.76406566,1926.9,1926.5,0.49747448]
[1772250172118,0.46560194,1926.8,1926.5,0.49747448]
[1772250172739,1.29846372,1926.9,1926.5,0.49747448]
[1772250172740,1.29843292,1926.9,1926.5,0.49747448]
[1772250172938,1.29843292,1926.9,1926.2,3.27053233]
[1772250172939,0.46560194,1926.8,1926.2,3.27053233]
[1772250173147,0.46560194,1926.8,1926.3,0.49747448]
[1772250174846,1.76314114,1926.8,1926.3,0.49747448]
[1772250175539,1.76314114,1926.8,1926.4,0.49747448]
[1772250178950,1.2975392,1926.8,1926.4,0.49747448]
[1772250179719,0.001,1926.7,1926.4,0.49747448]
[1772250180548,0.46660194,1926.7,1926.4,0.49747448]
[1772250180935,0.001,1926.7,1926.4,0.49747448]
[1772250183050,0.46660194,1926.7,1926.3,0.0011]
[1772250183642,0.46660194,1926.7,1926.3,0.49857448]
[1772250185358,1.29762275,1926.6,1926.3,0.49857448]
[1772250186946,1.76420646,1926.7,1926.3,0.49857448]
[1772250187759,0.46660194,1926.7,1926.3,0.49857448]
[1772250188633,1.7641638,1926.7,1926.3,0.49857448]
[1772250191365,1.7641638,1926.7,1926.4,0.0011]
[1772250191660,0.001,1926.6,1926.4,0.0011]
[1772250194335,0.001,1926.6,1926.4,0.46498156]
[1772250197466,0.001,1926.7,1926.5,0.46388156]
[1772250203381,0.45718834,1926.7,1926.4,0.0011]
[1772250204865,0.45718834,1926.7,1926.6,0.0011]
[1772250205061,0.45718834,1926.7,1926.4,0.0011]
[1772250205285,0.45718834,1926.6,1926.4,0.0011]
[1772250205449,1.75481109,1926.6,1926.5,0.0011]
[1772250208177,0.45618834,1926.5,1926.2,0.0011]
[1772250208392,0.45618834,1926.5,1926.1,0.46498156]
[1772250208551,1.88722705,1926.6,1926.2,0.46498156]
[1772250208552,1.29862275,1926.6,1926.2,0.46498156]
[1772250208873,1.29862275,1926.6,1926.2,0.0011]
[1772250208874,0.45618834,1926.5,1926.2,0.0011]
[1772250210193,0.45618834,1926.5,1926.2,0.46498156]
[1772250210789,0.45618834,1926.3,1926.1,0.0011]
[1772250210960,0.45618834,1926.3,1926.2,0.0011]
[1772250213356,1.29775747,1926.4,1926.2,0.46498156]
[1772250217293,1.29775747,1926.4,1926.3,0.0011]
[1772250221901,1.77184705,1926.4,1926.3,0.0011]
[1772250228110,0.47408958,1926.3,1926.0,0.0011]
[1772250228528,0.5886043,1926.2,1926.0,0.0011]
[1772250228683,0.47408958,1926.1,1926.0,0.0011]
[1772250230599,1.77204918,1926.1,1926.0,0.0011]
[1772250232332,0.47408958,1926.1,1926.0,0.0011]
[1772250232533,1.77304181,1926.2,1926.0,0.0011]
[1772250233000,0.001,1926.2,1926.0,0.49743875]
[1772250235796,0.001,1926.2,1926.0,0.0011]
[1772250235797,0.47508958,1926.2,1926.0,0.0011]
[1772250237216,0.001,1926.2,1926.0,0.49743875]
[1772250241325,0.001,1926.2,1926.1,0.49743875]
[1772250247124,0.47508958,1926.2,1926.1,0.0011]
[1772250248639,0.47508958,1926.2,1925.9,0.0011]
[1772250249005,1.77204918,1926.1,1925.9,0.0011]
[1772250249320,0.47408958,1926.0,1925.5,0.0011]
[1772250250021,0.47408958,1926.0,1925.5,0.49743875]
[1772250251540,1.79135111,1925.9,1925.5,0.49743875]
[1772250251705,0.49325672,1925.8,1925.5,0.49743875]
[1772250252810,0.49325672,1925.8,1925.6,0.0011]
[1772250253737,0.49325672,1925.6,1925.4,0.0011]
[1772250254203,0.49325672,1925.6,1925.3,0.0011]
[1772250256207,1.29836406,1925.5,1925.3,0.0011]
[1772250257932,1.79160233,1925.6,1925.3,0.49585535]
[1772250258306,1.29822921,1925.7,1925.3,0.49585535]
[1772250259134,1.2980802,1926.0,1925.6,0.49475535]
[1772250259636,1.79226289,1926.1,1925.6,0.49475535]
[1772250261733,0.49325672,1926.0,1925.6,0.43475535]
[1772250261941,0.49325672,1926.0,1925.4,0.49475535]
[1772250264841,1.79135111,1925.9,1925.4,0.49585535]
[1772250265334,1.79235111,1925.9,1925.4,0.49585535]
[1772250265538,0.49325672,1925.8,1925.4,0.49585535]
[1772250268040,1.79142907,1925.8,1925.4,0.49585535]
[1772250268849,1.29913792,1925.9,1925.4,0.49585535]
[1772250269558,1.79239464,1925.9,1925.4,0.49585535]
[1772250270751,0.001,1925.9,1925.4,0.49585535]
[1772250271441,0.49425672,1925.9,1925.4,0.49585535]
[1772250272047,0.001,1925.9,1925.5,0.49475535]
[1772250272434,0.001,1925.9,1925.6,0.49475535]
[1772250272752,0.001,1926.1,1925.8,0.49475535]
[1772250274559,0.001,1926.1,1926.0,0.49475535]
[1772250277360,1.79101247,1926.5,1926.0,0.49475535]
[1772250277953,0.49325672,1926.4,1926.0,0.49475535]
[1772250282940,1.79101868,1926.4,1926.0,0.49475535]
[1772250284054,0.47472668,1926.3,1926.0,0.49475535]
[1772250284638,0.47472668,1926.2,1925.9,0.472958]
[1772250285365,1.29780872,1926.4,1925.9,0.39403365]
[1772250285665,1.7725354,1926.4,1926.0,0.471858]
[1772250287558,0.47472668,1926.3,1925.9,0.86589165]
[1772250288133,0.47472668,1926.3,1925.9,0.0011]
[1772250288558,0.47472668,1926.3,1925.9,0.472958]
[1772250289570,0.47472668,1926.2,1925.8,0.0011]
[1772250289744,0.47472668,1925.9,1925.6,0.0011]
[1772250290061,0.47472668,1925.9,1925.6,0.472958]
[1772250290831,0.001,1926.2,1925.9,0.471858]
[1772250291364,0.47572668,1926.2,1925.7,0.471858]
[1772250291532,1.2979596,1926.1,1925.7,0.471858]
[1772250291731,1.77268628,1926.1,1925.7,0.471858]
[1772250295255,0.001,1926.2,1925.8,0.471858]
[1772250295434,0.001,1926.2,1925.9,0.471858]
[1772250295635,1.29889615,1926.2,1925.9,0.471858]
[1772250295968,0.001,1926.2,1925.9,0.471858]
[1772250297034,0.47472668,1926.0,1925.6,0.223958]
[1772250297236,0.47472668,1926.1,1925.7,0.471858]
[1772250298760,0.47472668,1926.0,1925.5,0.471858]
[1772250298971,0.47472668,1925.9,1925.4,0.0011]
[1772250299143,1.77302331,1925.6,1925.4,0.0011]
[1772250300044,0.47472668,1925.5,1925.4,0.0011]
[1772250300257,0.47472668,1925.5,1925.2,0.0011]
[1772250300639,5.19264721,1925.9,1925.4,0.471858]
[1772250300640,1.7728787,1925.9,1925.4,0.471858]
[1772250300837,1.7727494,1926.1,1925.6,0.471858]
[1772250301449,0.47472668,1926.0,1925.3,1.69136703]
[1772250301666,0.47472668,1926.0,1925.4,0.471858]
[1772250302174,0.47472668,1925.9,1925.2,1.77149203]
[1772250302377,0.47472668,1925.9,1925.3,0.471858]
[1772250302565,0.47472668,1925.9,1925.5,0.0011]
[1772250303570,1.2981618,1925.8,1925.5,0.0011]
[1772250304546,1.77288848,1925.8,1925.5,0.0011]
[1772250305876,1.29813973,1925.9,1925.5,0.472958]
[1772250306053,1.77286641,1925.9,1925.5,0.472958]
[1772250306254,0.47472668,1925.8,1925.5,0.472958]
[1772250307570,1.29813973,1925.9,1925.5,0.472958]
[1772250307872,1.77286641,1925.9,1925.5,0.472958]
[1772250308645,0.47472668,1925.8,1925.5,0.472958]
[1772250309180,0.47472668,1925.8,1925.5,0.0011]
[1772250310292,0.46774762,1925.7,1925.2,1.29965844]
[1772250310579,0.46774762,1925.7,1925.3,0.45036528]
[1772250310797,1.76591283,1925.8,1925.3,0.45036528]
[1772250312190,0.46774762,1925.7,1925.3,0.45036528]
[1772250312389,1.76599161,1925.7,1925.3,0.45036528]
[1772250313978,0.46774762,1926.0,1925.4,0.45036528]
[1772250314178,0.46774762,1925.9,1925.4,0.45036528]
[1772250314678,1.76586919,1925.9,1925.4,0.45146528]
[1772250314870,0.46874762,1925.8,1925.4,0.45146528]
[1772250316850,0.001,1925.8,1925.5,0.45036528]
[1772250317582,0.001,1925.8,1925.6,0.45036528]
[1772250319561,1.29889562,1926.2,1925.7,0.45036528]
[1772250321384,1.76664324,1926.2,1925.7,0.45036528]
[1772250323285,0.46774762,1926.1,1925.6,1.29828376]
[1772250323590,0.46774762,1926.1,1925.7,0.45036528]
[1772250324287,0.46774762,1926.1,1925.8,0.45036528]
[1772250324972,0.001,1926.2,1925.8,0.45036528]
[1772250325488,0.46874762,1926.2,1925.8,0.45036528]
[1772250327483,0.001,1926.1,1925.8,0.45036528]
[1772250327955,0.001,1926.1,1925.8,1.74851882]
[1772250328291,0.001,1926.2,1925.9,0.45036528]
[1772250329375,0.001,1926.2,1926.0,0.45036528]
[1772250333164,0.46874762,1926.2,1925.9,1.552]
[1772250333665,0.46874762,1926.2,1925.9,2.00236528]
[1772250334587,0.46874762,1926.2,1925.9,3.30045579]
[1772250334788,0.001,1926.2,1926.0,0.45036528]
[1772250337489,0.001,1926.2,1925.9,1.552]
[1772250337668,0.001,1926.2,1925.9,2.00236528]
[1772250338997,0.001,1926.2,1926.0,0.0011]
[1772250339177,0.001,1926.1,1926.0,0.0011]
[1772250353925,0.47309907,1926.1,1925.9,0.58726587]
[1772250358629,0.47209907,1926.0,1925.9,0.58726587]
[1772250361049,1.77012606,1926.0,1925.9,0.0011]
[1772250361210,0.47209907,1925.9,1925.7,0.0011]
[1772250365943,0.001,1926.0,1925.7,0.45407879]
[1772250366133,0.47309907,1926.0,1925.7,0.45407879]
[1772250370742,0.001,1926.2,1926.0,0.46918872]
[1772250374230,0.001,1926.2,1926.0,1.29802695]
[1772250374426,0.001,1926.2,1926.1,0.46918872]
[1772250376068,0.001,1926.2,1926.0,0.46918872]
[1772250379759,0.001,1926.2,1926.0,1.76719631]
[1772250380138,0.001,1926.2,1926.1,0.46918872]
[1772250380863,1.78861803,1926.6,1926.2,0.46918872]
[1772250381066,0.48999205,1926.5,1926.2,0.46918872]
[1772250383058,1.2986251,1926.6,1926.2,0.46918872]
[1772250383345,0.48999205,1926.5,1926.0,1.568]
[1772250383753,0.48999205,1926.5,1926.0,2.03718872]
[1772250386262,1.29775747,1926.4,1926.0,1.568]
[1772250386462,0.48999205,1926.3,1926.0,1.568]
[1772250387353,0.48999205,1926.3,1926.1,0.0011]
[1772250388967,0.001,1926.4,1926.2,0.46918872]
[1772250399678,0.001,1926.4,1926.3,0.0011]
[1772250399845,0.001,1926.4,1926.3,0.47028872]
[1772250409580,0.001,1926.4,1926.3,3.7376087]
[1772250409775,0.001,1926.6,1926.4,0.45108111]
[1772250411751,0.001,1926.6,1926.4,0.45218111]
[1772250413302,0.47844,1926.6,1926.4,0.0011]
[1772250416064,0.47844,1926.6,1926.3,3.30610384]
[1772250416588,0.47844,1926.6,1926.3,2.00828111]
[1772250417564,0.47844,1926.6,1926.3,3.30610198]
[1772250418889,0.001,1926.6,1926.4,0.45108111]
[1772250421194,0.001,1926.6,1926.5,0.45108111]
[1772250421694,0.47844,1926.6,1926.3,1.5572]
[1772250421864,0.47844,1926.6,1926.3,2.85501874]
[1772250423396,0.47844,1926.6,1926.3,3.30609985]
[1772250423574,0.001,1926.6,1926.4,0.45108111]
[1772250423775,0.001,1926.6,1926.4,0.45218111]
[1772250423976,0.001,1926.5,1926.4,0.45218111]
[1772250425076,0.001,1926.7,1926.5,0.45108111]
[1772250425276,0.001,1926.9,1926.7,0.45108111]
[1772250425886,0.001,1926.9,1926.7,1.7486094]
[1772250426088,0.001,1926.9,1926.7,0.45108111]
[1772250426284,0.001,1926.9,1926.7,1.74862571]
[1772250426486,0.001,1926.9,1926.8,0.45108111]
[1772250426777,0.001,1926.9,1926.7,1.74862571]
[1772250427302,0.47744,1927.2,1926.8,0.45108111]
[1772250427473,0.47744,1927.2,1926.9,1.587]
[1772250428907,0.47744,1927.2,1926.9,3.33549435]
[1772250429476,0.47744,1927.2,1926.9,2.03808111]
[1772250431277,0.46945598,1927.1,1926.9,1.587]
[1772250431592,0.46945598,1927.1,1926.9,1.087]
[1772250433279,1.76680937,1927.0,1926.6,2.06157656]
[1772250433478,0.46945598,1927.0,1926.6,2.06157656]
[1772250433677,0.46945598,1927.0,1926.6,3.3591805]
[1772250434591,0.46945598,1927.0,1926.6,1.588]
[1772250435808,0.46945598,1926.9,1926.6,1.588]
[1772250436012,0.47045598,1926.9,1926.6,1.588]
[1772250437213,0.47045598,1926.9,1926.6,3.35919094]
[1772250437399,1.76761014,1927.3,1926.7,0.47357656]
[1772250437909,0.46945598,1927.2,1926.9,0.47357656]
[1772250448622,0.46945598,1927.2,1927.0,0.0011]
[1772250449429,0.001,1927.1,1927.0,0.0011]
[1772250449628,0.001,1927.1,1927.0,0.47467656]